fUST/lending_fUST_20251004
["ID","MTS","AMOUNT","RATE_DAILY","PERIOD"]
[389114928,1759582261901,-500.0,0.0002,2]
[389114930,1759582261910,-421.910071,0.0002,2]
[389114932,1759582261919,-151.0,0.0002,2]
[389114934,1759582261928,-421.910071,0.0002,2]
[389114936,1759582261936,-151.0,0.0002,2]
[389114938,1759582261945,-377.804729,0.0002,2]
[389114940,1759582261954,-421.910071,0.0002,2]
[389114942,1759582261963,-744.57,0.0002,2]
[389114944,1759582261972,-151.0,0.0002,2]
[389114946,1759582261981,-500.0,0.0002,2]
[389114948,1759582261990,-500.0,0.0002,2]
[389114950,1759582261999,-518.41590094,0.0002,2]
[389114952,1759582262009,-500.0,0.0002,2]
[389114954,1759582262017,-151.0,0.0002,2]
[389114956,1759582262027,-500.0,0.0002,2]
[389114958,1759582262036,-151.0,0.0002,2]
[389114960,1759582262045,-151.0,0.0002,2]
[389114962,1759582262054,-151.0,0.0002,2]
[389114964,1759582262063,-151.0,0.0002,2]
[389114966,1759582262072,-550.31418726,0.0002,2]
[389114968,1759582262081,-500.0,0.0002,2]
[389114970,1759582262091,-151.0,0.0002,2]
[389114972,1759582262100,-500.0,0.0002,2]
[389114974,1759582262109,-1100.8,0.0002,2]
[389114976,1759582262118,-151.0,0.0002,2]
[389114978,1759582262127,-151.0,0.0002,2]
[389114980,1759582262136,-500.0,0.0002,2]
[389114982,1759582262146,-500.0,0.0002,2]
[389114984,1759582262155,-500.0,0.0002,2]
[389114986,1759582262165,-151.0,0.0002,2]
[389114988,1759582262175,-1468.58,0.0002,2]
[389114990,1759582262184,-500.0,0.0002,2]
[389114992,1759582262194,-500.0,0.0002,2]
[389114994,1759582262203,-154.170768,0.0002,2]
[389114996,1759582262212,-151.0,0.0002,2]
[389114998,1759582262221,-500.0,0.0002,2]
[389115000,1759582262229,-500.0,0.0002,2]
[389115002,1759582262238,-500.0,0.0002,2]
[389115004,1759582262247,-500.0,0.0002,2]
[389115006,1759582262257,-1277.48,0.0002,2]
[389115008,1759582262267,-442.67511379,0.0002,2]
[389115010,1759582262276,-500.0,0.0002,2]
[389115012,1759582262285,-785.41,0.0002,2]
[389115014,1759582262294,-751.7,0.0002,2]
[389115016,1759582262302,-500.0,0.0002,2]
[389115018,1759582262311,-500.0,0.0002,2]
[389115020,1759582262320,-692.47,0.0002,2]
[389115022,1759582262329,-151.0,0.0002,2]
[389115024,1759582262339,-500.0,0.0002,2]
[389115026,1759582262348,-500.0,0.0002,2]
[389115028,1759582262358,-500.0,0.0002,2]
[389115030,1759582262367,-151.0,0.0002,2]
[389115032,1759582262376,-558.308136,0.0002,2]
[389115034,1759582262385,-500.0,0.0002,2]
[389115036,1759582262394,-151.0,0.0002,2]
[389115038,1759582262404,-500.0,0.0002,2]
[389115040,1759582262413,-558.308136,0.0002,2]
[389115042,1759582262422,-151.0,0.0002,2]
[389115044,1759582262431,-558.308136,0.0002,2]
[389115046,1759582262441,-500.0,0.0002,2]
[389115048,1759582262451,-558.308136,0.0002,2]
[389115050,1759582262460,-151.0,0.0002,2]
[389115052,1759582262470,-1597.27,0.0002,2]
[389115054,1759582262480,-549.33,0.0002,2]
[389115056,1759582262489,-151.0,0.0002,2]
[389115058,1759582262498,-151.0,0.0002,2]
[389115060,1759582262507,-500.0,0.0002,2]
[389115062,1759582262516,-500.0,0.0002,2]
[389115078,1759582262655,-151.0,0.0002,2]
[389115080,1759582262666,-1444.29,0.0002,2]
[389115082,1759582262676,-762.96,0.0002,2]
[389115084,1759582262685,-153.311686,0.0002,2]
[389115086,1759582262694,-3987.82,0.0002,2]
[389115088,1759582262710,-500.0,0.0002,2]
[389115090,1759582262719,-2704.0,0.0002,2]
[389115092,1759582262729,-210.206214,0.0002,2]
[389115095,1759582262739,-210.206214,0.0002,2]
[389115097,1759582262750,-899.46,0.0002,2]
[389115099,1759582262759,-210.206214,0.0002,2]
[389115101,1759582262769,-500.0,0.0002,2]
[389115103,1759582262780,-151.0,0.0002,2]
[389115105,1759582262790,-210.206214,0.0002,2]
[389115107,1759582262799,-500.0,0.0002,2]
[389115108,1759582262808,-1061.231118,0.0002,2]
[389115110,1759582262817,-1061.231118,0.0002,2]
[389115112,1759582262826,-500.0,0.0002,2]
[389115115,1759582262835,-1061.231118,0.0002,2]
[389115117,1759582262845,-232.342074,0.0002,2]
[389115118,1759582262857,-1061.231118,0.0002,2]
[389115120,1759582262866,-889.58,0.0002,2]
[389115123,1759582262876,-232.342074,0.0002,2]
[389115124,1759582262886,-500.0,0.0002,2]
[389115126,1759582262896,-500.0,0.0002,2]
[389115128,1759582262907,-970.24,0.0002,2]
[389115130,1759582262917,-232.342074,0.0002,2]
[389115132,1759582262927,-890.79,0.0002,2]
[389115135,1759582262937,-500.0,0.0002,2]
[389115136,1759582262946,-560.22,0.0002,2]
[389115138,1759582262957,-232.342074,0.0002,2]
[389115140,1759582262966,-509.79,0.0002,2]
[389115142,1759582262976,-850.99,0.0002,2]
[389115144,1759582262986,-1111.72,0.0002,2]
[389115146,1759582262995,-752.66,0.0002,2]
[389115148,1759582263005,-633.91,0.0002,2]
[389115150,1759582263014,-1046.13,0.0002,2]
[389115152,1759582263023,-2794.99,0.0002,2]
[389115154,1759582263033,-500.0,0.0002,2]
[389115156,1759582263043,-1659.91,0.0002,2]
[389115158,1759582263052,-500.0,0.0002,2]
[389115160,1759582263061,-991.41,0.0002,2]
[389115162,1759582263071,-156.87135269,0.0002,2]
[389115164,1759582263080,-500.0,0.0002,2]
[389115166,1759582263091,-547.73494772,0.0002,2]
[389115168,1759582263100,-863.73,0.0002,2]
[389115170,1759582263109,-580.2,0.0002,2]
[389115172,1759582263118,-500.0,0.0002,2]
[389115174,1759582263127,-500.0,0.0002,2]
[389115176,1759582263137,-151.0,0.0002,2]
[389115178,1759582263146,-500.0,0.0002,2]
[389115180,1759582263156,-500.0,0.0002,2]
[389115183,1759582263166,-500.0,0.0002,2]
[389115185,1759582263175,-1170.5,0.0002,2]
[389115187,1759582263185,-190.96123,0.0002,2]
[389115188,1759582263194,-959.77,0.0002,2]
[389115191,1759582263204,-190.96123,0.0002,2]
[389115193,1759582263214,-151.0,0.0002,2]
[389115195,1759582263223,-190.96123,0.0002,2]
[389115197,1759582263232,-966.58,0.0002,2]
[389115199,1759582263242,-500.0,0.0002,2]
[389115201,1759582263251,-179.749958,0.0002,2]
[389115203,1759582263260,-190.96123,0.0002,2]
[389115205,1759582263270,-179.749958,0.0002,2]
[389115207,1759582263279,-500.0,0.0002,2]
[389115208,1759582263288,-500.0,0.0002,2]
[389115210,1759582263298,-500.0,0.0002,2]
[389115212,1759582263307,-179.749958,0.0002,2]
[389115214,1759582263318,-179.749958,0.0002,2]
[389115216,1759582263327,-654.0,0.0002,2]
[389115219,1759582263337,-2612.01,0.0002,2]
[389115221,1759582263347,-500.0,0.0002,2]
[389115223,1759582263356,-500.0,0.0002,2]
[389115225,1759582263365,-810.31,0.0002,2]
[389115227,1759582263374,-500.0,0.0002,2]
[389115228,1759582263384,-438.93159,0.0002,2]
[389115231,1759582263395,-438.93159,0.0002,2]
[389115233,1759582263404,-438.93159,0.0002,2]
[389115235,1759582263414,-500.0,0.0002,2]
[389115236,1759582263423,-696.23,0.0002,2]
[389115239,1759582263432,-438.93159,0.0002,2]
[389115241,1759582263442,-500.0,0.0002,2]
[389115243,1759582263451,-500.0,0.0002,2]
[389115244,1759582263460,-500.0,0.0002,2]
[389115246,1759582263469,-500.0,0.0002,2]
[389115249,1759582263479,-151.0,0.0002,2]
[389115251,1759582263489,-151.0,0.0002,2]
[389115252,1759582263499,-151.0,0.0002,2]
[389115254,1759582263509,-612.81,0.0002,2]
[389115257,1759582263519,-1207.67,0.0002,2]
[389115258,1759582263529,-500.0,0.0002,2]
[389115260,1759582263539,-435.065684,0.0002,2]
[389115262,1759582263548,-435.065684,0.0002,2]
[389115264,1759582263557,-500.0,0.0002,2]
[389115266,1759582263567,-435.065684,0.0002,2]
[389115268,1759582263575,-1881.62,0.0002,2]
[389115270,1759582263585,-804.82,0.0002,2]
[389115272,1759582263595,-500.0,0.0002,2]
[389115274,1759582263604,-5135.51,0.0002,2]
[389115276,1759582263613,-500.0,0.0002,2]
[389115278,1759582263629,-435.065684,0.0002,2]
[389115280,1759582263645,-944.8,0.0002,2]
[389115282,1759582263655,-500.0,0.0002,2]
[389115284,1759582263664,-151.0,0.0002,2]
[389115286,1759582263673,-151.0,0.0002,2]
[389115288,1759582263682,-151.0,0.0002,2]
[389115290,1759582263691,-151.0,0.0002,2]
[389115292,1759582263705,-151.0,0.0002,2]
[389115294,1759582263715,-1075.58,0.0002,2]
[389115296,1759582263724,-151.0,0.0002,2]
[389115298,1759582263733,-465.806335,0.0002,2]
[389115300,1759582263743,-2716.88,0.0002,2]
[389115302,1759582263752,-465.806335,0.0002,2]
[389115304,1759582263761,-500.0,0.0002,2]
[389115306,1759582263770,-465.806335,0.0002,2]
[389115308,1759582263781,-1462.49,0.0002,2]
[389115310,1759582263790,-465.806335,0.0002,2]
[389115312,1759582263799,-786.08,0.0002,2]
[389115314,1759582263808,-151.0,0.0002,2]
[389115316,1759582263817,-407.286452,0.0002,2]
[389115318,1759582263827,-151.0,0.0002,2]
[389115320,1759582263835,-407.286452,0.0002,2]
[389115321,1759582263845,-151.0,0.0002,2]
[389115324,1759582263855,-407.286452,0.0002,2]
[389115325,1759582263865,-270.705993,0.0002,2]
[389115327,1759582263874,-500.0,0.0002,2]
[389115329,1759582263883,-407.286452,0.0002,2]
[389115331,1759582263893,-500.0,0.0002,2]
[389115333,1759582263904,-151.0,0.0002,2]
[389115335,1759582263914,-500.0,0.0002,2]
[389115337,1759582263924,-511.28,0.0002,2]
[389115339,1759582263933,-151.0,0.0002,2]
[389115341,1759582263942,-500.0,0.0002,2]
[389115343,1759582263951,-1047.68,0.0002,2]
[389115345,1759582263960,-500.0,0.0002,2]
[389115347,1759582263969,-1301.49,0.0002,2]
[389115349,1759582263978,-841.67,0.0002,2]
[389115351,1759582263987,-500.0,0.0002,2]
[389115353,1759582263996,-970.1,0.0002,2]
[389115355,1759582264006,-500.0,0.0002,2]
[389115357,1759582264016,-531.12,0.0002,2]
[389115359,1759582264026,-2278.95,0.0002,2]
[389115361,1759582264036,-3686.13,0.0002,2]
[389115363,1759582264047,-500.0,0.0002,2]
[389115365,1759582264056,-500.0,0.0002,2]
[389115367,1759582264066,-585.68,0.0002,2]
[389115369,1759582264075,-312.228017,0.0002,2]
[389115370,1759582264085,-312.228017,0.0002,2]
[389115373,1759582264095,-4000.0,0.0002,4]
[389115375,1759582264104,-2796.07,0.0002,2]
[389115377,1759582264113,-312.228017,0.0002,2]
[389115378,1759582264122,-1336.609448,0.0002,2]
[389115380,1759582264133,-1219.25,0.0002,2]
[389115382,1759582264143,-312.228017,0.0002,2]
[389115384,1759582264152,-1336.609448,0.0002,2]
[389115386,1759582264161,-500.0,0.0002,2]
[389115388,1759582264170,-1336.609448,0.0002,2]
[389115390,1759582264178,-500.0,0.0002,2]
[389115392,1759582264188,-1830.54,0.0002,2]
[389115394,1759582264197,-1336.609448,0.0002,2]
[389115396,1759582264208,-500.0,0.0002,2]
[389115398,1759582264216,-500.0,0.0002,2]
[389115400,1759582264226,-500.0,0.0002,2]
[389115402,1759582264234,-500.0,0.0002,2]
[389115404,1759582264245,-151.0,0.0002,2]
[389115406,1759582264254,-4461.67,0.0002,2]
[389115408,1759582264263,-500.0,0.0002,2]
[389115410,1759582264272,-500.0,0.0002,2]
[389115412,1759582264281,-622.76,0.0002,2]
[389115414,1759582264290,-1711.92,0.0002,2]
[389115416,1759582264299,-759.509332,0.0002,2]
[389115418,1759582264309,-1288.58,0.0002,2]
[389115420,1759582264319,-759.509332,0.0002,2]
[389115421,1759582264328,-151.0,0.0002,2]
[389115423,1759582264337,-151.0,0.0002,2]
[389115425,1759582264346,-759.509332,0.0002,2]
[389115427,1759582264355,-151.0,0.0002,2]
[389115429,1759582264364,-898.81,0.0002,2]
[389115431,1759582264374,-500.0,0.0002,2]
[389115433,1759582264383,-759.509332,0.0002,2]
[389115435,1759582264392,-500.0,0.0002,2]
[389115437,1759582264401,-166.0,0.00020049,2]
[389115439,1759582264411,-2012.28,0.00020053,3]
[389115441,1759582264420,-1006.14,0.00020053,3]
[389115443,1759582264429,-503.06,0.00020053,3]
[389115445,1759582264439,-380.14,0.00020064,2]
[389115447,1759582264448,-380.14,0.00020064,2]
[389115449,1759582264457,-162.6278409,0.00020082,2]
[389115451,1759582264466,-559.8060411,0.0002011,2]
[389115453,1759582264476,-518.6815807,0.00020164,2]
[389115455,1759582264485,-500.0,0.00020171,2]
[389115457,1759582264495,-518.6804442,0.00020171,2]
[389115459,1759582264504,-555.75988534,0.00020171,2]
[389115461,1759582264514,-500.0,0.00020171,2]
[389115463,1759582264523,-631.8059667,0.00020171,2]
[389115465,1759582264532,-500.0,0.00020171,2]
[389115467,1759582264541,-500.0,0.00020171,2]
[389115469,1759582264550,-500.0,0.00020171,2]
[389115470,1759582264563,-500.0,0.00020171,2]
[389115472,1759582264574,-199.82406095,0.00020171,2]
[389115474,1759582264583,-500.0,0.00020171,2]
[389115476,1759582264592,-500.0,0.00020171,2]
[389115478,1759582264601,-500.0,0.00020171,2]
[389115480,1759582264611,-500.0,0.00020171,2]
[389115482,1759582264620,-500.0,0.00020171,2]
[389115484,1759582264630,-500.67964998,0.00020171,2]
[389115486,1759582264642,-500.0,0.00020171,2]
[389115488,1759582264651,-216.71966271,0.00020171,2]
[389115490,1759582264660,-500.0,0.00020171,2]
[389115492,1759582264668,-500.0,0.00020171,2]
[389115494,1759582264678,-500.0,0.00020171,2]
[389115496,1759582264687,-500.0,0.00020171,2]
[389115497,1759582264698,-500.0,0.00020171,2]
[389115499,1759582264710,-500.0,0.00020171,2]
[389115501,1759582264719,-500.0,0.00020171,2]
[389115503,1759582264730,-500.0,0.00020171,2]
[389115505,1759582264739,-500.0,0.00020171,2]
[389115507,1759582264748,-500.0,0.00020171,2]
[389115509,1759582264757,-501.47766934,0.00020171,2]
[389115511,1759582264767,-500.0,0.00020171,2]
[389115513,1759582264776,-500.0,0.00020171,2]
[389115515,1759582264785,-500.0,0.00020171,2]
[389115517,1759582264794,-500.0,0.00020171,2]
[389115519,1759582264803,-584.62874235,0.00020171,2]
[389115521,1759582264815,-420.0,0.00020174,2]
[389115523,1759582264831,-420.0,0.00020174,2]
[389115525,1759582264839,-500.0,0.00020174,2]
[389115527,1759582264848,-294.0,0.00020188,2]
[389115529,1759582264858,-500.0,0.00020189,2]
[389115531,1759582264867,-500.0,0.00020189,2]
[389115533,1759582264876,-192.94406099,0.00020189,2]
[389115534,1759582264885,-500.0,0.00020189,2]
[389115536,1759582264894,-500.0,0.00020189,2]
[389115538,1759582264903,-176.32845848,0.00020189,2]
[389115540,1759582264912,-587.13946892,0.00020189,2]
[389115542,1759582264921,-500.0,0.00020189,2]
[389115544,1759582264930,-500.0,0.00020189,2]
[389115546,1759582264939,-200.12305405,0.00020189,2]
[389115548,1759582264948,-500.0,0.00020189,2]
[389115550,1759582264957,-1000.0,0.00020218,2]
[389115552,1759582264966,-1000.0,0.00020218,2]
[389115553,1759582264975,-1000.0,0.00020218,2]
[389115555,1759582264984,-1000.0,0.00020218,2]
[389115557,1759582264993,-1121.27253247,0.00020218,2]
[389115559,1759582265002,-500.0,0.00020236,2]
[389115561,1759582265011,-1502.17481155,0.00020268,2]
[389115563,1759582265023,-1211.49680399,0.00020268,2]
[389115565,1759582265032,-667.66744651,0.00020268,2]
[389115567,1759582265041,-1500.0,0.00020268,2]
[389115569,1759582265051,-1500.0,0.00020268,2]
[389115571,1759582265059,-1153.93624795,0.00020268,2]
[389115573,1759582265068,-1500.0,0.00020268,2]
[389115575,1759582265077,-660.19102542,0.00020268,2]
[389115577,1759582265088,-1500.0,0.00020268,2]
[389115579,1759582265097,-1500.0,0.00020268,2]
[389115581,1759582265106,-1004.99689927,0.00020268,2]
[389115595,1759582265240,-1500.0,0.00020268,2]
[389115597,1759582265250,-1500.0,0.00020268,2]
[389115599,1759582265260,-1500.0,0.00020268,2]
[389115601,1759582265269,-1500.0,0.00020268,2]
[389115603,1759582265279,-1067.57004548,0.00020268,2]
[389115605,1759582265288,-1500.0,0.00020268,2]
[389115607,1759582265297,-1500.0,0.00020268,2]
[389115609,1759582265306,-1500.0,0.00020268,2]
[389115611,1759582265316,-1680.0,0.00020272,2]
[389115613,1759582265325,-420.35007864,0.00020273,2]
[389115615,1759582265334,-500.0,0.00020273,2]
[389115617,1759582265343,-500.0,0.00020273,2]
[389115619,1759582265352,-1129.15,0.00020273,2]
[389115621,1759582265361,-500.0,0.00020273,2]
[389115623,1759582265370,-500.0,0.00020273,2]
[389115624,1759582265381,-500.0,0.00020273,2]
[389115626,1759582265389,-500.0,0.00020273,2]
[389115628,1759582265399,-500.0,0.00020273,2]
[389115630,1759582265408,-500.0,0.00020273,2]
[389115632,1759582265418,-500.0,0.00020273,2]
[389115634,1759582265429,-500.0,0.00020273,2]
[389115636,1759582265438,-500.0,0.00020273,2]
[389115638,1759582265447,-635.33,0.00020273,2]
[389115640,1759582265455,-151.0,0.00020273,2]
[389115642,1759582265464,-552.57,0.00020273,2]
[389115644,1759582265474,-151.0,0.00020273,2]
[389115646,1759582265482,-151.679228,0.00020273,2]
[389115648,1759582265491,-151.0,0.00020273,2]
[389115650,1759582265500,-151.0,0.00020273,2]
[389115652,1759582265510,-151.0,0.00020273,2]
[389115654,1759582265519,-734.82,0.00020273,2]
[389115656,1759582265529,-151.0,0.00020273,2]
[389115658,1759582265540,-151.0,0.00020273,2]
[389115660,1759582265549,-151.0,0.00020273,2]
[389115662,1759582265559,-500.0,0.00020273,2]
[389115664,1759582265568,-500.0,0.00020273,2]
[389115666,1759582265577,-449.00755382,0.00020273,2]
[389115668,1759582265587,-563.89,0.00020273,2]
[389115670,1759582265596,-693.1,0.00020273,2]
[389115672,1759582265605,-500.0,0.00020273,2]
[389115673,1759582265614,-151.0,0.00020273,2]
[389115675,1759582265625,-553.96,0.00020273,2]
[389115677,1759582265635,-151.0,0.00020273,2]
[389115679,1759582265643,-667.64,0.00020273,2]
[389115682,1759582265655,-500.0,0.00020273,2]
[389115684,1759582265665,-500.0,0.00020273,2]
[389115686,1759582265674,-927.47,0.00020273,2]
[389115688,1759582265683,-500.0,0.00020273,2]
[389115690,1759582265693,-153.233783,0.00020273,2]
[389115692,1759582265707,-500.0,0.00020273,2]
[389115693,1759582265726,-151.526714,0.00020273,2]
[389115696,1759582265737,-882.4,0.00020273,2]
[389115697,1759582265748,-500.0,0.00020273,2]
[389115699,1759582265759,-151.199924,0.00020273,2]
[389115701,1759582265771,-500.0,0.00020273,2]
[389115703,1759582265781,-500.0,0.00020273,2]
[389115706,1759582265791,-500.0,0.00020273,2]
[389115708,1759582265801,-899.57,0.00020273,2]
[389115710,1759582265811,-151.0,0.00020273,2]
[389115712,1759582265820,-500.0,0.00020273,2]
[389115713,1759582265829,-500.0,0.00020273,2]
[389115715,1759582265840,-151.0,0.00020273,2]
[389115718,1759582265850,-151.0,0.00020273,2]
[389115719,1759582265858,-500.0,0.00020273,2]
[389115721,1759582265868,-2623.04,0.00020273,2]
[389115723,1759582265877,-151.0,0.00020273,2]
[389115725,1759582265887,-500.0,0.00020273,2]
[389115727,1759582265897,-151.0,0.00020273,2]
[389115729,1759582265906,-151.0,0.00020273,2]
[389115731,1759582265916,-500.0,0.00020273,2]
[389115733,1759582265925,-640.83,0.00020273,2]
[389115734,1759582265934,-500.0,0.00020273,2]
[389115735,1759582265944,-151.0,0.00020273,2]
[389115736,1759582265952,-1310.74,0.00020273,2]
[389115737,1759582265962,-749.84,0.00020273,2]
[389115738,1759582265971,-500.0,0.00020273,2]
[389115739,1759582265980,-2382.25,0.00020273,2]
[389115740,1759582265990,-500.0,0.00020273,2]
[389115741,1759582265999,-707.87,0.00020273,2]
[389115742,1759582266008,-1283.05,0.00020273,2]
[389115743,1759582266017,-500.0,0.00020273,2]
[389115744,1759582266027,-500.0,0.00020273,2]
[389115745,1759582266036,-876.9,0.00020273,2]
[389115746,1759582266044,-904.32,0.00020273,2]
[389115747,1759582266054,-500.0,0.00020273,2]
[389115748,1759582266063,-500.0,0.00020273,2]
[389115749,1759582266072,-500.0,0.00020273,2]
[389115750,1759582266081,-542.11,0.00020273,2]
[389115751,1759582266090,-500.0,0.00020273,2]
[389115752,1759582266099,-500.0,0.00020273,2]
[389115753,1759582266108,-500.0,0.00020273,2]
[389115754,1759582266117,-500.0,0.00020273,2]
[389115755,1759582266126,-1143.82,0.00020273,2]
[389115756,1759582266135,-1168.54,0.00020273,2]
[389115757,1759582266144,-500.0,0.00020273,2]
[389115758,1759582266152,-500.0,0.00020273,2]
[389115759,1759582266162,-500.92,0.00020273,2]
[389115760,1759582266172,-500.0,0.00020273,2]
[389115761,1759582266181,-663.79,0.00020273,2]
[389115762,1759582266190,-500.0,0.00020273,2]
[389115764,1759582266199,-2928.1,0.00020273,2]
[389115765,1759582266208,-152.538068,0.00020273,2]
[389115766,1759582266217,-753.15,0.00020273,2]
[389115768,1759582266227,-1528.06,0.00020273,2]
[389115770,1759582266235,-500.0,0.00020273,2]
[389115772,1759582266245,-500.0,0.00020273,2]
[389115774,1759582266254,-1221.58,0.00020273,2]
[389115776,1759582266263,-500.0,0.00020273,2]
[389115778,1759582266272,-500.0,0.00020273,2]
[389115780,1759582266281,-520.37,0.00020273,2]
[389115782,1759582266290,-562.82,0.00020273,2]
[389115784,1759582266301,-500.0,0.00020273,2]
[389115786,1759582266310,-151.0,0.00020273,2]
[389115788,1759582266319,-443.15683303,0.00020273,2]
[389115790,1759582266327,-151.0,0.00020273,2]
[389115792,1759582266336,-500.0,0.00020273,2]
[389115794,1759582266346,-500.0,0.00020273,2]
[389115796,1759582266355,-151.0,0.00020273,2]
[389115799,1759582266368,-151.0,0.00020273,2]
[389115801,1759582266387,-586.62,0.00020273,2]
[389115804,1759582266401,-1226.46,0.00020273,2]
[389115807,1759582266417,-151.0,0.00020273,2]
[389115809,1759582266434,-500.0,0.00020273,2]
[389115812,1759582266449,-500.0,0.00020273,2]
[389115815,1759582266466,-758.10456,0.00020273,2]
[389115818,1759582266482,-758.10456,0.00020273,2]
[389115820,1759582266496,-758.10456,0.00020273,2]
[389115823,1759582266510,-758.10456,0.00020273,2]
[389115825,1759582266525,-500.0,0.00020273,2]
[389115828,1759582266538,-500.0,0.00020273,2]
[389115830,1759582266552,-1546.54,0.00020273,2]
[389115833,1759582266566,-500.0,0.00020273,2]
[389115835,1759582266582,-151.0,0.00020273,2]
[389115838,1759582266598,-640.45,0.00020273,2]
[389115841,1759582266614,-445.39405772,0.00020273,2]
[389115843,1759582266625,-151.0,0.00020273,2]
[389115845,1759582266637,-500.0,0.00020273,2]
[389115848,1759582266654,-151.0,0.00020273,2]
[389115850,1759582266666,-151.0,0.00020273,2]
[389115853,1759582266679,-500.0,0.00020273,2]
[389115855,1759582266693,-151.0,0.00020273,2]
[389115857,1759582266708,-373.70332433,0.00020273,2]
[389115860,1759582266721,-151.0,0.00020273,2]
[389115862,1759582266733,-514.22,0.00020273,2]
[389115864,1759582266745,-500.0,0.00020273,2]
[389115866,1759582266759,-577.75,0.00020273,2]
[389115869,1759582266774,-151.0,0.00020273,2]
[389115871,1759582266787,-199.240728,0.00020273,2]
[389115874,1759582266800,-165.579866,0.00020273,2]
[389115876,1759582266812,-236.501964,0.00020273,2]
[389115878,1759582266825,-165.579866,0.00020273,2]
[389115881,1759582266839,-621.59,0.00020273,2]
[389115883,1759582266852,-236.501964,0.00020273,2]
[389115885,1759582266865,-165.579866,0.00020273,2]
[389115888,1759582266878,-236.501964,0.00020273,2]
[389115890,1759582266890,-165.579866,0.00020273,2]
[389115892,1759582266905,-236.501964,0.00020273,2]
[389115895,1759582266919,-878.25,0.00020273,2]
[389115897,1759582266932,-500.0,0.00020273,2]
[389115900,1759582266945,-532.16,0.00020273,2]
[389115902,1759582266957,-500.0,0.00020273,2]
[389115904,1759582266970,-500.0,0.00020273,2]
[389115907,1759582266983,-151.0,0.00020273,2]
[389115909,1759582266997,-151.0,0.00020273,2]
[389115911,1759582267010,-151.0,0.00020273,2]
[389115914,1759582267022,-151.0,0.00020273,2]
[389115916,1759582267036,-500.0,0.00020273,2]
[389115918,1759582267048,-500.0,0.00020273,2]
[389115921,1759582267060,-500.0,0.00020273,2]
[389115923,1759582267073,-2202.03,0.00020273,2]
[389115925,1759582267085,-518.58,0.00020273,2]
[389115928,1759582267097,-1787.61,0.00020273,2]
[389115930,1759582267110,-500.0,0.00020273,2]
[389115932,1759582267122,-636.3,0.00020273,2]
[389115935,1759582267135,-151.0,0.00020273,2]
[389115937,1759582267148,-151.0,0.00020273,2]